Workbook

Sheet ZAČETEK
B1: O TEJ PREDLOGI
B2: Spremljajte začetno investicijo na spletnem mestu, njene koristi in stroške z orodjem za pripravo poračuna za spletno mesto.
B3: Vnesite podrobnosti v tabele – skupni stroški in metrika ocenjevanja bosta samodejno izračunana.
B4: Opomba:
B5: Dodatna navodila so na voljo v stolpcu A na delovnem listu ORODJE ZA PRIPRAVO PRORAČUNA. To besedilo je bilo namenoma skrito. Če želite besedilo premakniti, izberite stolpec A, nato izberite še IZBRIŠI. Če želite besedilo razkriti, izberite stolpec A, nato zamenjajte barvo pisave.
B6: Če želite izvedeti več o tabelah na delovnem list, znotraj tabele pritisnite SHIFT in F10, izberite možnost TABELA, nato pa izberite NADOMESTNO BESEDILO.

Sheet ORODJE ZA PRIPRAVO PRORAČUNA
B2: Strojna oprema Quadrex
B3: ORODJE ZA PRIPRAVO PRORAČUNA ZA SPLETNO MESTO
B4: 2022-12-01
B6: Podatki podjetja | C6: Stopnja
B7: Zahtevana stopnja donosa | C7: 10%
B8: Davčna stopnja | C8: 30%
B10: Začetna naložba za spletno mesto | C10: Leto
B11: Strojna oprema (npr. strežniki) | C11: 25,000.00 €
B12: Programska oprema (npr. programska oprema za katalog za elektronsko poslovanje) | C12: 15,000.00 €
B13: Razvoj (npr. načrtovanje in razvoj spletnega mesta drugih izdelovalcev) | C13: 150,000.00 €
B14: Skupaj začetna investicija | C14: =SUBTOTAL(109,Začetna_investicija[Leto]) -> 190,000.00 €
B16: Koristi spletnega mesta | C16: Leto 1 | D16: Leto 2 | E16: Leto 3
B17: Neposredna prodaja | C17: 15,000.00 € | D17: 50,000.00 € | E17: 75,000.00 €
B18: Povečana prodaja kot rezultat učinkovitejše promocije/učinkovitejšega dela prodajalcev | C18: 25,000.00 € | D18: 25,000.00 € | E18: 25,000.00 €
B19: Povečana prodaja kot rezultat povečanega sodelovanja partnerjev | C19: 25,000.00 € | D19: 25,000.00 € | E19: 25,000.00 €
B20: Manjši stroški potovanj | C20: 25,000.00 € | D20: 25,000.00 € | E20: 25,000.00 €
B21: Manjši stroški storitev za stranke | C21: 50,000.00 € | D21: 50,000.00 € | E21: 50,000.00 €
B22: Skupaj koristi | C22: =SUBTOTAL(109,Koristi[Leto 1]) -> 140,000.00 € | D22: =SUBTOTAL(109,Koristi[Leto 2]) -> 175,000.00 € | E22: =SUBTOTAL(109,Koristi[Leto 3]) -> 200,000.00 €
B24: Stroški (brez začetnih investicij) | C24: LETO 1 | D24: LETO 2 | E24: LETO 3
B25: Stroški prodaje | C25: 7,500.00 € | D25: 25,000.00 € | E25: 37,500.00 €
B26: Vzdrževanje | C26: 15,000.00 € | D26: 15,000.00 € | E26: 15,000.00 €
B27: Vodenje projektov, podpora uporabnikom | C27: 35,000.00 € | D27: 35,000.00 € | E27: 35,000.00 €
B28: Spletno oglaševanje, registracija mehanizma za iskanje | C28: 10,000.00 € | D28: 10,000.00 € | E28: 10,000.00 €
B29: Amortizacija naložb (izračun uporabi obdobje treh let) | C29: =Začetna_investicija[[#Totals],[Leto]]/3 -> 63,333.33 € | D29: =Začetna_investicija[[#Totals],[Leto]]/3 -> 63,333.33 € | E29: =Začetna_investicija[[#Totals],[Leto]]/3 -> 63,333.33 €
B30: Skupni stroški | C30: =SUBTOTAL(109,Stroški[LETO 1]) -> 130,833.33 € | D30: =SUBTOTAL(109,Stroški[LETO 2]) -> 148,333.33 € | E30: =SUBTOTAL(109,Stroški[LETO 3]) -> 160,833.33 €
B32: Skupaj | D32: Leto 1 | E32: Leto 2 | F32: Leto 3
B33: Čisti dobiček (stroški) | D33: =Koristi[[#Totals],[Leto 1]]-Stroški[[#Totals],[LETO 1]] -> 9,166.67 € | E33: =Koristi[[#Totals],[Leto 2]]-Stroški[[#Totals],[LETO 2]] -> 26,666.67 € | F33: =Koristi[[#Totals],[Leto 3]]-Stroški[[#Totals],[LETO 3]] -> 39,166.67 €
B34: Davek | D34: =D33*DavčnaStopnja -> 2,750.00 € | E34: =E33*DavčnaStopnja -> 8,000.00 € | F34: =F33*DavčnaStopnja -> 11,750.00 €
B35: Dobiček po obračunu davkov | D35: =D33-D34 -> 6,416.67 € | E35: 18,666.67 € | F35: 27,416.67 €
B36: Ponovno dodana amortizacija | D36: =C29 -> 63,333.33 € | E36: =D29 -> 63,333.33 € | F36: =E29 -> 63,333.33 €
B37: Denarni tok | C37: =-Začetna_investicija[[#Totals],[Leto]] -> -190,000.00 € | D37: =D35+D36 -> 69,750.00 € | E37: =E35+E36 -> 82,000.00 € | F37: =F35+F36 -> 90,750.00 €
B38: Kumulativni denarni tok | C38: =C37 -> -190,000.00 € | D38: =C38+D37 -> -120,250.00 € | E38: -38,250.00 € | F38: 52,500.00 €
B40: Metrika ocenjevanja | C40: Vrednosti
B41: Neto sedanja vrednost (NPV) | C41: =C37+(NPV(Donosnost_prihodkov,D37:F37)) -> 9,359.50 €
B42: Notranja stopnja donosnosti (IRR) | C42: =IRR(C37:F37) -> 12.66%
B43: Obdobje povračila naložbe (v letih) | C43: =IF(F38<=0,"Več kot 3 leta",IF(E38<=0,(F37-F38)/F37+2,IF(D38<=0,(E37-E38)/E37+1,IF(C38<=0,(D37-D38)/D37,"Ni na voljo")))) -> 2.42
